bitfinex/quotes_SOLUSD_20220101
["timestamp","ask_amount","ask_price","bid_price","bid_amount"]
[1641044036793,10.7152,172.59,172.51,8.9541]
[1641044042422,75.707,172.6,172.55,8.6926]
[1641044042724,1.64081645,172.63,172.55,0.26]
[1641044043122,75.77771645,172.64,172.55,0.26]
[1641044043322,11.61866714,172.63,172.52,31.04892006]
[1641044044122,1.2366,172.62,172.52,31.04892006]
[1641044044322,1.2366,172.62,172.52,1.5744]
[1641044044724,1.2366,172.62,172.57,8.6912]
[1641044045123,1.2366,172.62,172.57,8.9512]
[1641044046927,72.781,172.64,172.57,8.9512]
[1641044047224,73.041,172.64,172.57,8.9512]
[1641044049229,23.02839703,172.65,172.57,8.9512]
[1641044049428,23.78839703,172.65,172.57,8.9512]
[1641044049727,23.78839703,172.65,172.55,8.6922]
[1641044050729,1.64081645,172.64,172.55,8.6922]
[1641044050930,8.6922,172.63,172.55,8.9522]
[1641044051729,1.3507,172.64,172.55,8.9522]
[1641044052128,2.1107,172.64,172.55,8.9522]
[1641044052329,10.8022,172.64,172.55,8.9522]
[1641044059236,10.3022,172.64,172.55,8.9522]
[1641044059437,10.8022,172.64,172.55,8.9522]
[1641044065167,10.3022,172.64,172.55,8.9522]
[1641044065341,10.8022,172.64,172.55,8.9522]
[1641044070549,10.0422,172.64,172.55,8.9522]
[1641044070747,10.8022,172.64,172.55,8.9522]
[1641044070947,10.5422,172.64,172.55,8.9522]
[1641044072548,10.8022,172.64,172.55,8.9522]
[1641044073171,10.5422,172.64,172.55,8.9522]
[1641044073372,10.8022,172.64,172.55,8.9522]
[1641044081384,10.3022,172.64,172.55,8.9522]
[1641044083580,10.0422,172.64,172.55,8.9522]
[1641044083780,10.3022,172.64,172.55,8.9522]
[1641044086684,10.0422,172.64,172.55,8.9522]
[1641044086883,10.3022,172.64,172.55,8.9522]
[1641044088988,1.6107,172.64,172.55,8.9522]
[1641044098305,2.1107,172.64,172.55,8.9522]
[1641044098503,1.6107,172.64,172.55,8.9522]
[1641044099106,10.802,172.64,172.55,8.9522]
[1641044099706,10.302,172.64,172.55,8.9522]
[1641044100910,1.3507,172.64,172.55,8.9522]
[1641044102010,1.6107,172.64,172.55,8.9522]
[1641044102210,1.6107,172.64,172.55,10.2909]
[1641044104020,8.5507,172.64,172.55,10.2909]
[1641044105923,8.2907,172.64,172.55,10.2909]
[1641044106544,8.5507,172.64,172.55,10.2909]
[1641044114551,8.2907,172.64,172.55,10.2909]
[1641044115052,6.94,172.64,172.55,10.2909]
[1641044117455,6.94,172.64,172.55,10.0309]
[1641044117683,7.2,172.64,172.55,10.0309]
[1641044117855,7.44,172.64,172.55,10.0309]
[1641044118159,7.2,172.64,172.55,10.0309]
[1641044118355,7.7,172.64,172.55,10.0309]
[1641044118556,16.3914,172.64,172.55,10.0309]
[1641044118756,1.3038,172.63,172.55,8.6922]
[1641044118954,2.0638,172.63,172.55,8.6922]
[1641044119155,1.5638,172.63,172.55,8.6922]
[1641044119857,2.0638,172.63,172.55,8.6922]
[1641044120057,1.5638,172.63,172.55,8.6922]
[1641044120761,10.2557,172.63,172.55,8.6922]
[1641044120958,10.2557,172.63,172.55,8.9522]
[1641044123963,1.5638,172.63,172.55,8.9522]
[1641044124663,8.5038,172.63,172.55,8.9522]
[1641044128264,17.1955,172.63,172.55,8.9522]
[1641044128466,17.6955,172.63,172.55,8.9522]
[1641044128866,17.1955,172.63,172.55,8.9522]
[1641044131470,16.9355,172.63,172.55,8.9522]
[1641044131667,8.2438,172.63,172.55,8.9522]
[1641044133899,8.5038,172.63,172.55,8.9522]
[1641044134098,17.1954,172.63,172.55,8.9522]
[1641044134601,16.9354,172.63,172.55,8.6922]
[1641044134800,17.6954,172.63,172.55,8.6922]
[1641044135004,17.1954,172.63,172.55,8.6922]
[1641044135603,8.5038,172.63,172.55,8.6922]
[1641044135802,8.2438,172.63,172.55,8.6922]
[1641044136002,8.5038,172.63,172.55,8.6922]
[1641044136403,8.5038,172.63,172.55,8.9522]
[1641044141315,8.2438,172.63,172.55,8.9522]
[1641044141508,21.78059703,172.65,172.55,8.9522]
[1641044141709,13.58989703,172.65,172.55,8.9522]
[1641044142309,13.58989703,172.65,172.55,10.1922]
[1641044142509,13.84989703,172.65,172.55,10.1922]
[1641044142710,13.58989703,172.65,172.55,10.1922]
[1641044145613,1.3181,172.66,172.55,16.67689368]
[1641044146013,1.64081645,172.67,172.55,16.67689368]
[1641044146214,1.3141,172.68,172.55,16.67689368]
[1641044146616,8.58081645,172.69,172.55,16.67689368]
[1641044147017,6.94,172.69,172.55,16.67689368]
[1641044148219,6.94,172.69,172.55,11.61889368]
[1641044151323,1.3307,172.68,172.55,11.61889368]
[1641044153827,14.54989385,172.7,172.55,11.61889368]
[1641044154226,15.04989385,172.7,172.55,11.61889368]
[1641044154425,14.54989385,172.7,172.55,11.61889368]
[1641044155025,15.30989385,172.7,172.55,11.61889368]
[1641044155224,14.80989385,172.7,172.55,11.61889368]
[1641044155426,1.2939,172.69,172.55,11.61889368]
[1641044159148,1.7939,172.69,172.55,11.61889368]
[1641044160348,1.2939,172.69,172.55,11.61889368]
[1641044161753,1.2939,172.69,172.55,18.55889368]
[1641044161954,14.54989385,172.7,172.55,18.55889368]
[1641044165860,1.2944,172.71,172.55,18.55889368]
[1641044166159,1.2944,172.71,172.55,27.12346575]
[1641044166359,15.6258,172.76,172.55,27.12346575]
[1641044166561,1.2527,172.74,172.55,27.12346575]
[1641044166760,1.2527,172.74,172.55,32.23806467]
[1641044166964,14.48448008,172.73,172.55,32.23806467]
[1641044167160,75.4942,172.72,172.55,32.23806467]
[1641044168567,14.48448008,172.73,172.55,32.23806467]
[1641044169065,14.48448008,172.73,172.55,37.30406467]
[1641044169368,1.2527,172.74,172.61,102.04028805]
[1641044169571,149.70961645,172.77,172.67,8.6843]
[1641044169967,74.01851645,172.77,172.67,8.9443]
[1641044170367,15.24498229,172.79,172.68,31.96459437]
[1641044170569,15.24498229,172.79,172.68,33.53539437]
[1641044171568,15.24498229,172.79,172.73,8.6823]
[1641044171968,15.24498229,172.79,172.73,8.9423]
[1641044172368,1.3066,172.8,172.73,8.9423]
[1641044179681,1.3066,172.8,172.73,8.6823]
[1641044180980,1.3066,172.8,172.73,8.9423]
[1641044181482,1.5666,172.8,172.73,0.26]
[1641044181684,2.0666,172.8,172.73,0.26]
[1641044181880,2.0666,172.8,172.71,8.944]
[1641044182080,1.5666,172.8,172.71,8.944]
[1641044182281,10.2506,172.8,172.66,28.9473]
[1641044182485,12.17729368,172.8,172.69,8.6849]
[1641044182685,6.94,172.79,172.69,8.6849]
[1641044182887,1.64081645,172.78,172.63,28.9526]
[1641044183090,6.94,172.77,172.63,28.9526]
[1641044183488,8.6858,172.76,172.67,8.6859]
[1641044183789,8.2327,172.76,172.62,32.17429205]
[1641044183988,3.05735247,172.75,172.62,32.43429205]
[1641044184592,3.05735247,172.75,172.69,8.6852]
[1641044184789,1.2358,172.74,172.69,8.6852]
[1641044184994,1.2358,172.74,172.69,8.9452]
[1641044187519,72.0699,172.78,172.69,8.9452]
[1641044188220,1.329,172.77,172.69,8.9452]
[1641044188719,1.329,172.77,172.69,37.32000783]
[1641044192726,72.0699,172.78,172.69,37.32000783]
[1641044193127,73.3586,172.78,172.69,37.32000783]
[1641044194028,73.3586,172.78,172.69,8.9452]
[1641044202244,81.98529368,172.78,172.69,8.9452]
[1641044202443,82.48529368,172.78,172.69,8.9452]
[1641044202845,82.48529368,172.78,172.69,8.6852]
[1641044203746,91.16989368,172.78,172.69,8.6852]
[1641044203973,91.38401645,172.78,172.69,8.6852]
[1641044204173,91.38401645,172.78,172.69,8.9452]
[1641044206379,89.7432,172.78,172.69,8.9452]
[1641044206878,80.2986,172.78,172.69,8.9452]
[1641044208279,73.3586,172.78,172.69,8.9452]
[1641044208680,73.6186,172.78,172.69,8.9452]
[1641044209080,73.3586,172.78,172.69,8.9452]
[1641044210883,94.5,172.8,172.69,8.9452]
[1641044211783,93.83814993,172.82,172.69,8.9452]
[1641044211988,93.83814993,172.82,172.69,10.2635]
[1641044213587,94.09814993,172.82,172.69,10.2635]
[1641044214390,94.09814993,172.82,172.69,8.9452]
[1641044214591,94.59814993,172.82,172.69,8.9452]
[1641044214785,94.09814993,172.82,172.69,8.9452]
[1641044214987,94.59814993,172.82,172.69,8.9452]
[1641044215588,103.28084993,172.82,172.69,8.9452]
[1641044215789,103.28084993,172.82,172.69,10.2032]
[1641044216191,102.78084993,172.82,172.69,10.2032]
[1641044216894,103.28084993,172.82,172.69,10.2032]
[1641044219899,93.83814993,172.82,172.69,10.2032]
[1641044221899,14.58174993,172.82,172.69,10.2032]
[1641044227130,14.58174993,172.82,172.69,9.9432]
[1641044227532,14.84174993,172.82,172.69,9.9432]
[1641044227730,14.58174993,172.82,172.69,9.9432]
[1641044228631,15.34174993,172.82,172.69,10.2032]
[1641044229034,14.84174993,172.82,172.69,10.2032]
[1641044229233,14.58174993,172.82,172.69,10.2032]
[1641044229631,15.08174993,172.82,172.69,10.2032]
[1641044229831,14.84174993,172.82,172.69,10.2032]
[1641044230034,14.58174993,172.82,172.69,10.2032]
[1641044230235,13.24774993,172.82,172.69,10.2032]
[1641044232738,13.24774993,172.82,172.69,17.1432]
[1641044234738,1.29,172.84,172.7,117.42823695]
[1641044234937,1.29,172.84,172.71,6.94]
[1641044235138,96.833395,172.86,172.77,8.6794]
[1641044235539,96.833395,172.86,172.77,8.9394]
[1641044235738,108.41848672,172.86,172.77,8.9394]
[1641044238344,109.76638672,172.86,172.77,8.9394]
[1641044241348,15.26638672,172.86,172.77,8.9394]
[1641044260192,15.26638672,172.86,172.77,8.6794]
[1641044260388,15.76638672,172.86,172.77,8.6794]
[1641044260588,16.02638672,172.86,172.77,8.6794]
[1641044261493,24.20688672,172.86,172.77,8.6794]
[1641044262190,24.20688672,172.86,172.77,8.9394]
[1641044262996,24.70688672,172.86,172.77,8.9394]
[1641044263599,6.94,172.85,172.77,8.9394]
[1641044263993,7.2,172.85,172.77,8.9394]
[1641044264894,1.2894,172.84,172.77,8.9394]
[1641044265095,1.5494,172.84,172.77,8.9394]
[1641044269301,1.2894,172.84,172.77,8.9394]
[1641044275306,13.91848672,172.86,172.77,8.9394]
[1641044275803,1.3224,172.85,172.77,8.9394]
[1641044285243,1.3224,172.85,172.77,8.6794]
[1641044287648,1.3224,172.85,172.77,8.9394]
[1641044289248,13.91848672,172.86,172.77,8.9394]
[1641044289847,15.18908672,172.86,172.77,8.9394]
[1641044292450,15.18908672,172.86,172.77,8.6794]
[1641044295153,15.18908672,172.86,172.77,8.9394]
[1641044299361,15.18908672,172.86,172.77,40.49762642]
[1641044299660,3.603995,172.86,172.77,40.49762642]
[1641044303264,3.603995,172.86,172.77,8.9394]
[1641044308568,3.603995,172.86,172.77,8.6794]
[1641044309969,3.603995,172.86,172.77,8.9394]
[1641044314675,12.283995,172.86,172.77,8.9394]
[1641044314874,12.783995,172.86,172.77,8.9394]
[1641044315871,12.283995,172.86,172.77,8.9394]
[1641044316499,12.543995,172.86,172.77,8.6794]
[1641044316876,13.043995,172.86,172.77,8.6794]
[1641044317080,12.543995,172.86,172.77,8.6794]
[1641044317276,13.043995,172.86,172.77,8.6794]
[1641044317883,13.043995,172.86,172.77,8.9394]
[1641044321988,12.783995,172.86,172.77,8.9394]
[1641044322387,12.283995,172.86,172.77,8.9394]
[1641044322586,12.783995,172.86,172.77,8.9394]
[1641044323488,13.043995,172.86,172.77,8.9394]
[1641044324507,12.783995,172.86,172.77,8.9394]
[1641044324706,12.283995,172.86,172.77,8.9394]
[1641044325408,12.783995,172.86,172.77,8.9394]
[1641044325706,12.283995,172.86,172.77,8.9394]
[1641044325908,12.783995,172.86,172.77,8.9394]
[1641044326107,12.283995,172.86,172.77,8.9394]
[1641044328308,3.603995,172.86,172.77,8.9394]
[1641044331012,3.603995,172.86,172.78,28.1893701]
[1641044331215,2.333395,172.86,172.78,28.1893701]
[1641044331412,2.333395,172.86,172.82,8.6778]
[1641044331617,2.333395,172.86,172.82,8.9378]
[1641044347835,2.333395,172.86,172.82,8.6778]
[1641044349240,2.333395,172.86,172.82,8.9378]
[1641044355470,2.333395,172.86,172.82,8.6778]
[1641044356071,17.80314703,172.86,172.82,8.6778]
[1641044356970,17.80314703,172.86,172.82,8.9378]
[1641044358174,2.333395,172.86,172.82,8.9378]
[1641044360475,2.333395,172.86,172.82,8.6778]
[1641044362777,2.333395,172.86,172.82,8.9378]
[1641044376588,2.333395,172.86,172.82,8.6778]
[1641044378590,2.333395,172.86,172.82,8.9378]
[1641044428802,2.333395,172.86,172.82,8.6778]
[1641044431206,2.333395,172.86,172.82,8.9378]
[1641044449850,2.333395,172.86,172.83,1.42669368]
[1641044450051,2.333395,172.86,172.84,11.70839997]
[1641044450247,2.333395,172.86,172.85,131.01330776]
[1641044450647,2.333395,172.86,172.85,131.27330776]
[1641044451651,2.333395,172.86,172.85,139.94850776]
[1641044453660,2.333395,172.86,172.85,8.9352]
[1641044461376,2.30982618,172.86,172.85,8.9352]
[1641044465995,2.30982618,172.86,172.85,14.99959993]
[1641044474514,2.30982618,172.86,172.85,8.9352]
[1641044474912,2.30982618,172.86,172.85,14.99959993]
[1641044476714,2.30982618,172.86,172.85,8.9352]
[1641044478115,2.30982618,172.86,172.85,14.99959993]
[1641044488331,2.30982618,172.86,172.85,8.9352]
[1641044488531,2.30982618,172.86,172.85,8.6752]
[1641044490062,2.30982618,172.86,172.85,14.99959993]
[1641044491963,2.30982618,172.86,172.85,8.9352]
[1641044495970,2.30982618,172.86,172.85,14.99959993]
[1641044496172,2.30982618,172.86,172.85,16.42629361]
[1641044496372,30.0466018,172.87,172.85,16.42629361]
[1641044496971,1.3102,172.94,172.86,35.0]
[1641044497172,2.333395,172.87,172.86,35.0]
[1641044497372,2.333395,172.87,172.86,42.75109361]
[1641044497573,1.3102,172.94,172.86,42.75109361]
[1641044498072,3.643595,172.94,172.86,42.75109361]
[1641044499574,3.643595,172.94,172.86,51.42419361]
[1641044508216,1.3102,172.94,172.86,51.42419361]
[1641044509111,3.643595,172.94,172.86,51.42419361]
[1641044519224,1.3102,172.94,172.86,51.42419361]
[1641044542071,1.3102,172.94,172.86,14.73749993]
[1641044543573,1.3102,172.94,172.86,14.99749993]
[1641044543774,1.3102,172.94,172.86,14.73749993]
[1641044544074,3.07089764,172.93,172.86,14.73749993]
[1641044545475,3.33089764,172.93,172.86,14.73749993]
[1641044545677,3.33089764,172.93,172.86,14.99749993]
[1641044546675,3.33089764,172.93,172.86,14.73749993]
[1641044547977,3.33089764,172.93,172.86,14.99749993]
[1641044550077,3.33089764,172.93,172.86,14.73749993]
[1641044550978,3.33089764,172.93,172.86,14.99749993]
[1641044551977,3.07089764,172.93,172.86,14.99749993]
[1641044565491,1.3102,172.94,172.86,14.99749993]
[1641044566294,1.3102,172.94,172.86,16.42419361]
[1641044566695,1.3102,172.94,172.86,14.99749993]
[1641044567094,1.3102,172.94,172.86,16.42419361]
[1641044567496,1.3102,172.94,172.86,14.99749993]
[1641044572002,79.6282,172.96,172.86,16.42419361]
[1641044572501,80.9709,172.96,172.86,16.42419361]
[1641044572902,80.9709,172.96,172.87,26.35920331]
[1641044573102,80.9709,172.96,172.87,26.61920331]
[1641044573402,80.9709,172.96,172.91,8.673]
[1641044573706,79.7252,172.96,172.91,8.933]
[1641044574402,79.7252,172.96,172.91,8.673]
[1641044583439,79.9852,172.96,172.91,8.673]
[1641044590846,80.4852,172.96,172.9,8.6751]
[1641044591247,79.9852,172.96,172.9,8.6751]
[1641044591650,88.6605,172.96,172.9,8.6751]
[1641044592149,79.9852,172.96,172.9,8.6751]
[1641044592348,80.4852,172.96,172.9,8.6751]
[1641044592549,79.9852,172.96,172.9,8.6751]
[1641044598655,79.7252,172.96,172.9,8.6751]
[1641044598857,1.3427,172.96,172.9,8.9351]
[1641044599055,1.3427,172.96,172.9,10.36179368]
[1641044602258,1.3427,172.96,172.9,8.9351]
[1641044604866,1.6027,172.96,172.9,8.6751]
[1641044610690,1.3427,172.96,172.9,8.9351]
[1641044614495,1.6027,172.96,172.9,8.6751]
[1641044615096,1.3427,172.96,172.9,8.6751]
[1641044616297,1.6027,172.96,172.9,8.6751]
[1641044616496,1.3427,172.96,172.9,8.6751]
[1641044617496,1.3427,172.96,172.9,8.9351]
[1641044617896,1.6027,172.96,172.9,8.6751]
[1641044618099,1.3427,172.96,172.9,8.6751]
[1641044618998,1.3427,172.96,172.9,8.9351]
[1641044621799,1.3427,172.96,172.9,10.36179368]
[1641044622200,1.3427,172.96,172.9,8.9351]
[1641044624801,1.3427,172.96,172.9,8.6751]
[1641044626004,1.3427,172.96,172.9,8.9351]
[1641044627508,1.3427,172.96,172.9,8.6751]
[1641044627509,1.6027,172.96,172.9,8.6751]
[1641044628210,1.3427,172.96,172.9,8.6751]
[1641044628408,1.3427,172.96,172.9,8.9351]
[1641044628907,1.3427,172.96,172.9,8.6751]
[1641044629306,1.3427,172.96,172.9,8.9351]
[1641044630509,1.3427,172.96,172.9,8.6751]
[1641044630707,1.3427,172.96,172.9,8.9351]
[1641044630907,1.3427,172.96,172.9,8.6751]
[1641044631909,1.6027,172.96,172.9,8.6751]
[1641044632715,1.3427,172.96,172.9,8.9351]
[1641044632914,1.3427,172.96,172.91,1.42669368]
[1641044633112,100.0,173.0,172.93,8.6718]
[1641044633511,100.0,173.0,172.93,8.9318]
[1641044634111,100.0,173.0,172.93,10.35849368]
[1641044636640,100.0,173.0,172.93,8.9318]
[1641044646053,100.0,173.0,172.93,10.35849368]
[1641044650760,100.0,173.0,172.93,10.09849368]
[1641044652361,100.0,173.0,172.93,10.35849368]
[1641044660276,100.0,173.0,172.93,10.09849368]
[1641044662005,100.0,173.0,172.93,10.35849368]
[1641044676458,100.0,173.0,172.93,8.6718]
[1641044676657,100.26,173.0,172.93,8.6718]
[1641044678557,100.26,173.0,172.93,8.9318]
[1641044679558,108.9331,173.0,172.93,8.9318]
[1641044681468,108.6731,173.0,172.93,8.9318]
[1641044682266,100.0,173.0,172.93,8.9318]
[1641044682467,100.26,173.0,172.93,8.9318]
[1641044683267,101.4874,173.0,172.93,8.9318]
[1641044683667,110.1604,173.0,172.93,8.6718]
[1641044684468,101.4874,173.0,172.93,8.9318]
[1641044684868,101.4874,173.0,172.93,8.6718]
[1641044686370,101.4874,173.0,172.93,8.9318]
[1641044686573,101.4874,173.0,172.93,8.6718]
[1641044687173,110.1603,173.0,172.93,8.6718]
[1641044688574,101.4874,173.0,172.93,8.6718]
[1641044690275,110.1603,173.0,172.93,8.6718]
[1641044693080,101.4874,173.0,172.93,8.6718]
[1641044694181,101.2274,173.0,172.93,8.6718]
[1641044694383,101.2274,173.0,172.93,8.9318]
[1641044695381,110.4003,173.0,172.93,8.6718]
[1641044695583,110.1603,173.0,172.93,8.6718]
[1641044695984,110.1603,173.0,172.93,8.9318]
[1641044696388,110.6603,173.0,172.93,8.6718]
[1641044696584,110.1603,173.0,172.93,8.6718]
[1641044700987,110.1603,173.0,172.93,8.9318]
[1641044701187,101.4874,173.0,172.93,8.9318]
[1641044701494,101.2274,173.0,172.93,8.6718]
[1641044701886,101.2274,173.0,172.92,8.6739]
[1641044702086,101.7274,173.0,172.92,8.9339]
[1641044702487,110.1604,173.0,172.92,8.9339]
[1641044702786,110.1604,173.0,172.92,8.6739]
[1641044702991,110.6604,173.0,172.92,8.6739]
[1641044704186,110.6604,173.0,172.96,0.25456]
[1641044704792,118.9904,173.0,172.96,0.00456]
[1641044705188,75.1002,172.99,172.96,0.00456]
[1641044705389,17.007,172.98,172.96,0.00456]
[1641044705589,17.267,172.98,172.96,0.00456]
[1641044705788,17.767,172.98,172.96,0.00456]
[1641044706618,17.767,172.98,172.79,8.56457207]
[1641044706619,71.0,172.96,172.77,1.2517]
[1641044706790,84.7518,172.95,172.81,8.6788]
[1641044706992,86.8035,172.95,172.81,8.6788]
[1641044707394,86.8035,172.95,172.76,8.33]
[1641044707591,12.00614312,172.94,172.77,24.15653699]
[1641044707792,8.33,172.93,172.77,24.15653699]
[1641044707994,9.09,172.93,172.77,24.41653699]
[1641044708196,8.6792,172.88,172.8,8.6792]
[1641044708692,8.9392,172.88,172.8,8.9392]
[1641044716131,8.6787,172.89,172.8,8.9392]
[1641044716831,1.261,172.9,172.8,8.9392]
[1641044717032,8.33,172.91,172.8,8.9392]
[1641044717231,8.6787,172.89,172.8,8.9392]
[1641044718032,1.311,172.88,172.8,8.9392]
[1641044722036,4.14561219,172.87,172.8,8.9392]
[1641044731249,1.311,172.88,172.8,8.9392]
[1641044733049,1.311,172.88,172.8,8.6792]
[1641044733548,1.571,172.88,172.8,8.6792]
[1641044733948,1.571,172.88,172.8,6.1792]
[1641044734648,1.571,172.88,172.8,6.4392]
[1641044734850,10.2501,172.88,172.8,6.4392]
[1641044741488,9.9901,172.88,172.8,6.4392]
[1641044742189,1.311,172.88,172.8,6.4392]
[1641044743394,10.2501,172.88,172.8,6.4392]
[1641044743590,10.7501,172.88,172.8,6.4392]
[1641044743790,10.2501,172.88,172.8,6.4392]
[1641044744992,10.2501,172.88,172.8,6.1792]
[1641044747496,10.2501,172.88,172.8,6.4392]
[1641044748098,10.2501,172.88,172.8,3.9392]
[1641044748902,10.2501,172.88,172.8,3.6792]
[1641044749100,10.2501,172.88,172.8,3.9392]
[1641044749300,10.2501,172.88,172.8,3.6792]
[1641044749501,10.2501,172.88,172.8,3.9392]
[1641044751805,1.311,172.88,172.8,3.9392]
[1641044753006,1.571,172.88,172.8,3.9392]
[1641044755609,10.2499,172.88,172.8,3.9392]
[1641044757913,9.9899,172.88,172.8,3.9392]
[1641044758115,1.311,172.88,172.8,3.9392]
[1641044759734,9.9899,172.88,172.8,3.9392]
[1641044760735,10.2499,172.88,172.8,3.9392]
[1641044763239,9.9899,172.88,172.8,3.9392]
[1641044763640,1.311,172.88,172.8,3.9392]
[1641044766757,1.571,172.88,172.8,3.9392]
[1641044785180,1.311,172.88,172.8,3.9392]
[1641044785431,73.1184,172.92,172.8,3.9392]
[1641044785712,1.2525,172.91,172.8,3.9392]
[1641044786213,1.2525,172.91,172.8,5.2696]
[1641044787819,1.5125,172.91,172.8,5.2696]
[1641044789624,1.2525,172.91,172.8,5.2696]
[1641044792827,1.7525,172.91,172.8,5.2696]
[1641044793031,1.2525,172.91,172.8,5.2696]
[1641044793833,1.7525,172.91,172.8,5.2696]
[1641044794033,1.2525,172.91,172.8,5.2696]
[1641044794435,1.2525,172.91,172.8,5.0096]
[1641044794634,1.5125,172.91,172.8,5.0096]
[1641044796037,1.5125,172.91,172.8,5.2696]
[1641044798054,1.5125,172.91,172.8,5.0096]
[1641044798253,2.0125,172.91,172.8,5.0096]
[1641044798454,10.69,172.91,172.8,5.0096]
[1641044800357,10.69,172.91,172.8,5.2696]
[1641044801160,10.19,172.91,172.8,5.2696]
[1641044801358,10.69,172.91,172.8,5.2696]
[1641044801558,10.19,172.91,172.8,5.2696]
[1641044802459,10.69,172.91,172.8,5.0096]
[1641044803859,10.69,172.91,172.8,5.2696]
[1641044813374,10.43,172.91,172.8,5.2696]
[1641044814777,10.69,172.91,172.8,5.2696]
[1641044819683,10.69,172.91,172.8,5.0096]
[1641044821186,10.69,172.91,172.8,5.2696]
[1641044825818,9.93,172.91,172.8,5.2696]
[1641044826016,1.64081645,172.98,172.81,125.92748996]
[1641044826217,1.64081645,172.98,172.81,231.79574894]
[1641044826416,1.64081645,172.98,172.81,257.28153011]
[1641044826618,2.87301645,172.99,172.82,16.81469722]
[1641044826817,2.87301645,172.99,172.83,8.33]
[1641044827018,1.2322,172.99,172.84,27.37212628]
[1641044827220,1.2322,172.99,172.92,8.6719]
[1641044827621,1.4922,172.99,172.92,8.9319]
[1641044827823,1.2322,172.99,172.92,8.9319]
[1641044828022,1.4922,172.99,172.92,8.9319]
[1641044828420,1.4922,172.99,172.92,10.35859368]
[1641044828820,1.2322,172.99,172.92,10.35859368]
[1641044830022,1.4922,172.99,172.92,10.35859368]
[1641044830223,1.2322,172.99,172.92,10.35859368]
[1641044830422,1.4922,172.99,172.92,10.35859368]
[1641044830622,100.0,173.0,172.92,10.35859368]
[1641044833625,100.0,173.0,172.92,18.68859368]
[1641044833827,100.0,173.0,172.92,28.52637131]
[1641044834225,100.0,173.0,172.92,34.44675311]
[1641044834424,42.2131,173.0,172.93,71.0]
[1641044834625,42.2131,173.0,172.96,8.6679]
[1641044835026,157.9541,173.08,172.98,27.88950867]
[1641044835425,157.9541,173.08,172.99,1.42669368]
[1641044835628,157.9541,173.08,172.99,1.68669368]
[1641044836025,157.9541,173.08,173.0,1.42669368]
[1641044836230,157.9541,173.08,173.04,8.667]
[1641044836426,1.2858,173.08,173.04,8.667]
[1641044837027,0.26,173.08,173.04,8.667]
[1641044837425,1.6152,173.1,173.04,8.667]
[1641044837826,2.1152,173.1,173.04,8.667]
[1641044838028,2.1152,173.1,173.03,8.6684]
[1641044842533,1.6152,173.1,173.03,8.6684]
[1641044843334,2.1152,173.1,173.03,8.6684]
[1641044844135,1.6152,173.1,173.03,8.6684]
[1641044848837,2.1152,173.1,173.03,8.6684]
[1641044857340,3.4075,173.1,173.03,8.6684]
[1641044859347,11.7375,173.1,173.03,8.6684]
[1641044859645,11.2375,173.1,173.03,8.6684]
[1641044859847,11.7375,173.1,173.03,8.6684]
[1641044861453,8.33,173.09,173.03,8.6684]
[1641044862055,8.59,173.09,173.03,8.6684]
[1641044862255,0.76,173.09,173.03,8.6684]
[1641044862552,0.5,173.09,173.03,8.6684]
[1641044862952,11.7375,173.1,173.03,8.6684]
[1641044866380,3.4075,173.1,173.03,8.6684]
[1641044866579,8.33,173.09,173.03,8.6684]
[1641044866875,0.5,173.09,173.03,8.6684]
[1641044867075,0.76,173.09,173.03,8.6684]
[1641044867476,0.5,173.09,173.03,8.6684]
[1641044867676,3.4075,173.1,173.03,8.6684]
[1641044869180,8.33,173.09,173.01,8.6694]
[1641044869379,79.128,173.08,172.9,9.46762174]
[1641044869578,8.33,173.07,172.9,9.46762174]